Cogmind - Beta 16 @@@ ROGUE MODE // 2025.11.06 @ 00:05:52 Player: daxter767676 Result: Destroyed by Z-Imprinter with Zionite Laser-M Performance ------------- Evolutions (1) 500 Regions Visited (5) 1000 Robots Destroyed (19) 95 Value Destroyed (514) 514 Prototype IDs (2) 40 Alien Tech Used (0) 0 Bonus (600) 600 TOTAL SCORE: 2749 Bonus ------- Met Imprinter 300 Was Imprinted 300 Cogmind --------- Core Integrity 0/400 Matter 300/300 Energy 170/170 System Corruption 0% Temperature Cool (86) Movement Rolling (140) Ox4 Location -7/Deep Caves Parts ------- > --- POWER (1) -------- Makeshift Power Source > --- PROPULSION (3) --- Wheel > --- UTILITY (3) ------ High-capacity Storage Unit Makeshift Light Armor Plating > --- WEAPON (2) ------- Makeshift Laser > --- INVENTORY (20) --- Ion Engine Light Treads Light Treads Airjet High-capacity Storage Unit Makeshift Terrain Scan Processor Improved Targeting Computer Improved Targeting Computer Improved Targeting Computer Improved Targeting Computer Improved Targeting Computer Mobile Refinery Mk. CCLXVII Thief Drone Bay (3/3) Improved Medium Laser KE Penetrator Improved Light Cannon Improved Light Cannon Improved Light Cannon Improved Light Cannon Mining Laser Peak State ------------ > --- POWER ------------ Makeshift Power Source > --- PROPULSION ------- Wheel Wheel Wheel > --- UTILITY ---------- High-capacity Storage Unit Makeshift Light Armor Plating Medium Reactive Plating > --- WEAPON ----------- Makeshift Laser Makeshift Axe > --- INVENTORY -------- Ion Engine Light Treads Light Treads Airjet High-capacity Storage Unit Makeshift Terrain Scan Processor Improved Targeting Computer Improved Targeting Computer Improved Targeting Computer Improved Targeting Computer Improved Targeting Computer Mobile Refinery Mk. CCLXVII Thief Drone Bay Improved Medium Laser KE Penetrator Improved Light Cannon Improved Light Cannon Improved Light Cannon Improved Light Cannon Mining Laser [Rating: 29] Favorites ----------- Power Ion Engine Engine Ion Engine Propulsion Wheel Leg Aluminum Leg Wheel Wheel Utility High-capacity Storage Unit Device Seismic Detector Storage High-capacity Storage Unit Protection Makeshift Light Armor Plating Weapon Improved Light Cannon Energy Gun Makeshift Laser Ballistic Gun Light Assault Rifle Ballistic Cannon Improved Light Cannon Slashing Weapon Makeshift Axe Build | -11 -10 -9 -9 -7 -7 ------- Run | Yrd Mat Mat Min Zio Dee Slots Evolved 2 | . . 2 . . . Power . | . . . . . . Propulsion 1 | . . 1 . . . Utility 1 | . . 1 . . . Weapon . | . . . . . . Parts Attached 30 | . 10 5 8 7 . Power 3 | . 1 . . 2 . Engine 3 | . 1 . . 2 . Core . | . . . . . . Reactor . | . . . . . . Propulsion 7 | . 2 1 4 . . Treads . | . . . . . . Leg 1 | . . . 1 . . Wheel 6 | . 2 1 3 . . Hover . | . . . . . . Flight . | . . . . . . Utility 8 | . 1 3 1 3 . Device 4 | . . 2 1 1 . Storage 2 | . 1 1 . . . Processor . | . . . . . . Hackware . | . . . . . . Protection 2 | . . . . 2 . Artifact . | . . . . . . Weapon 12 | . 6 1 3 2 . Energy Gun 6 | . 5 . . 1 . Energy Cannon . | . . . . . . Ballistic Gun 1 | . 1 . . . . Ballistic Cannon 4 | . . 1 3 . . Launcher . | . . . . . . Special Weapon . | . . . . . . Impact Weapon . | . . . . . . Slashing Weapon 1 | . . . . 1 . Piercing Weapon . | . . . . . . Special Melee Weapon . | . . . . . . Unidentified Prototypes 2 | . . . 1 1 . Parts Lost 18 | . 5 . 9 . 4 Power 2 | . 1 . 1 . . Propulsion 6 | . 1 . 3 . 2 Utility 3 | . . . 2 . 1 Weapon 7 | . 3 . 3 . 1 Highest Loss Streak 5 | . 4 . 5 . 4 To Critical Strikes 1 | . . . 1 . . Average Backups 17 | . 10 19 18 19 20 Power 1 | . 1 2 2 1 1 Propulsion 3 | . 6 5 2 2 3 Utility 6 | . . 3 6 8 9 Weapon 5 | . 1 7 7 6 7 Tool/Special . | . . . . . . Unused Backups 24 | . 1 6 . 1 16 Power 1 | . . . . . 1 Propulsion 9 | . . 6 . . 3 Utility 7 | . 1 . . . 6 Weapon 7 | . . . . 1 6 Tool/Special . | . . . . . . Average Slot Usage (%) 89 | . 89 87 59 97 100 Engine 8 | . 8 11 2 10 11 Wheel 27 | . 24 22 14 33 33 Device 3 | . . 21 9 . . Storage 14 | . 26 11 11 11 11 Protection 10 | . . . . 19 22 Energy Gun 10 | . 18 14 2 8 11 Ballistic Gun 1 | . 7 . . . . Ballistic Cannon 6 | . . 8 18 5 . Slashing Weapon 4 | . . . . 8 11 Peak Build Rating 29 | . 9 15 21 29 29 Average Rating 18 | . 7 14 11 24 28 On Entrance 12 | 6 6 8 15 11 29 Avg Prop Armor Cover (%) 8 | . . . 8 . . Naked Turns . | . . . . . . Heaviest Build 77 | 13 54 54 54 77 73 Greatest Support 32 | 20 32 32 32 30 30 Greatest Overweight (x) 5 | . 3 1 5 2 2 Average Overweight (x) 1 | . 1 1 2 1 1 Largest Inventory Capacity 20 | . 20 20 20 20 20 Average Capacity 19 | . 19 20 20 20 20 Most Carried 20 | . 17 20 20 20 20 Average Carried 17 | . 10 19 18 19 20 Final Capacity 20 | 8 20 20 20 20 20 Final Carried 20 | 6 17 20 17 20 20 Class Distribution -------------------- 56% | Mutant 43% | Derelict-Mutant Dominant Class ---------------- Mutant | -10/Materials Mutant | -9/Materials Mutant | -9/Mines Derelict-Mutant | -7/Zion Derelict-Mutant | -7/Deep Caves Resources | -11 -10 -9 -9 -7 -7 ----------- Run | Yrd Mat Mat Min Zio Dee Matter Collected 845 | 200 140 24 239 242 . Remotely . | . . . . . . Salvage Created 527 | . 365 65 97 . . Parts 31 | . 24 6 1 . . Haulers Intercepted . | . . . . . . Recyclers Shooed . | . . . . . . Parts Field Recycled . | . . . . . . Retrieved Matter . | . . . . . . Parts Self-Destructed . | . . . . . . Prevented . | . . . . . . Parts Restored . | . . . . . . Kills | -11 -10 -9 -9 -7 -7 ------- Run | Yrd Mat Mat Min Zio Dee Combat Hostiles Destroyed 29 | . 10 4 15 . . Guns 10 | . 7 2 1 . . Cannons 16 | . . 2 14 . . AOE 3 | . 3 . . . . Classes Destroyed 7 | . 3 1 3 . . Tunneler 1 | . . . 1 . . Watcher 2 | . 2 . . . . Swarmer 6 | . 3 3 . . . Grunt 7 | . 7 . . . . Sentry 1 | . . 1 . . . Demolisher 2 | . . . 2 . . Assembled 13 | . . . 13 . . Best Kill Streak 5 | . 4 3 5 . . Combat Bots Only 5 | . 3 3 5 . . Max Kills in Single Turn 3 | . 3 1 2 . . Gunslinging . | . . . . . . Exploded 3 | . 3 . . . . Melee . | . . . . . . Uniques/NPCs Destroyed . | . . . . . . Combat | -11 -10 -9 -9 -7 -7 -------- Run | Yrd Mat Mat Min Zio Dee Hostile Shots Fired 184 | . 65 14 70 . 35 Missed 48 | . 14 5 19 . 10 Hits 136 | . 51 9 51 . 25 Melee 8 | . . . 8 . . Projectile 128 | . 51 9 43 . 25 AOE 9 | . . . 9 . . Critical Strikes 5 | . 3 1 1 . . Part Disruptions 3 | . . . 3 . . Damage Taken 2663 | . 785 99 1037 . 742 Core 635 | . 230 8 243 . 154 Absorbed by Shields . | . . . . . . Core Remaining (%) 54 | 100 8 . . . . Volleys Fired 92 | . 36 7 49 . . Largest 2 | . 2 2 2 . . Hottest 105 | . 105 98 98 . . Shots Fired 151 | . 61 14 76 . . Gun 73 | . 61 7 5 . . Cannon 78 | . . 7 71 . . Launcher . | . . . . . . Special . | . . . . . . Kinetic 106 | . 28 7 71 . . Thermal 38 | . 26 7 5 . . Explosive . | . . . . . . Electromagnetic 7 | . 7 . . . . Robot Hit Streak 19 | . 19 6 5 . . Robot Miss Streak 4 | . 3 1 4 . . Penetration Max . | . . . . . . Secondary Targets . | . . . . . . Shots Hit Robots 89 | . 44 10 35 . . Core Hits 46 | . 19 5 22 . . Critical Kills . | . . . . . . Critical Parts Destroyed . | . . . . . . Critical Strikes . | . . . . . . Melee Attacks . | . . . . . . Impact . | . . . . . . Slashing . | . . . . . . Piercing . | . . . . . . Sneak Attacks . | . . . . . . Combat Hostiles . | . . . . . . Follow-up Attacks . | . . . . . . Damage Inflicted 1619 | . 669 176 774 . . Guns 629 | . 492 76 61 . . Cannons 813 | . . 100 713 . . Explosions 177 | . 177 . . . . Melee . | . . . . . . Ramming . | . . . . . . Kinetic 993 | . 180 100 713 . . Thermal 575 | . 438 76 61 . . Explosive . | . . . . . . Electromagnetic 51 | . 51 . . . . Impact . | . . . . . . Slashing . | . . . . . . Piercing . | . . . . . . Highest Corruption 5 | . . . 5 5 . Average Corruption 4 | . . . 4 5 . Corruption Purged . | . . . . . . Corruption Blocked . | . . . . . . Effects 10 | . . . 5 5 . Message Errors 4 | . . . 1 3 . Matter Fused 1 | . . . . 1 . Heat Flow Errors 2 | . . . 2 . . Energy Discharges 3 | . . . 2 1 . Overload Shots . | . . . . . . Overflow Damage 28 | . . . 28 . . Projectiles 28 | . . . 28 . . Explosions . | . . . . . . Melee . | . . . . . . Knockbacks 11 | . . 2 9 . . Impact . | . . . . . . Kinetic 11 | . . 2 9 . . Secondary . | . . . . . . Self-Inflicted Damage 55 | . 55 . . . . Shots 1 | . 1 . . . . Rammed . | . . . . . . Targets Rammed . | . . . . . . Kicked . | . . . . . . Crushed . | . . . . . . Highest Temperature 250 | . 250 4 119 . 63 Average Temperature 50 | . 61 4 34 . 22 Received Heat Transfer 924 | . 423 36 240 . 225 Siege Activations . | . . . . . . Martial Activations . | . . . . . . Shielding Activations . | . . . . . . Robots Disrupted . | . . . . . . Combat Hostiles . | . . . . . . Robots Corrupted . | . . . . . . Combat Hostiles . | . . . . . . Parts Fried . | . . . . . . Impact Corruptions . | . . . . . . Robots Melted . | . . . . . . Combat Hostiles . | . . . . . . Parts Melted 2 | . 2 . . . . Heat Transferred 1105 | . 772 185 148 . . Parts Sabotaged . | . . . . . . Parts Stolen . | . . . . . . Parts Stripped . | . . . . . . Power Chain Reactions 1 | . 1 . . . . Alert | -11 -10 -9 -9 -7 -7 ------- Run | Yrd Mat Mat Min Zio Dee Maximum Alert Level . | . . . . . . Low Security (%) 100 | . 100 100 100 . . Level 1 . | . . . . . . Level 2 . | . . . . . . Level 3 . | . . . . . . Level 4 . | . . . . . . Level 5 . | . . . . . . High Security . | . . . . . . Max Security . | . . . . . . Peak Influence 105 | . 105 82 30 . . Initial 37 | . . 37 24 . . Average 28 | . 45 26 5 . . Influence Increases 478 | . 311 102 65 . . Destroy 0b10 Robot/C 320 | . 200 80 40 . . Destroy 0b10 Robot/NC 15 | . 10 . 5 . . Destroy Leader 84 | . 54 20 10 . . Successful Hack 11 | . 11 . . . . Destroy Structure 18 | . 6 2 10 . . Lose Combat Pursuer 30 | . 30 . . . . Influence Decreases 478 | . 222 129 127 . . Entered New Map 90 | . . 52 38 . . Time Decay 318 | . 178 77 63 . . Lost Part 70 | . 44 . 26 . . Squads Dispatched 4 | . 3 1 . . . Investigation . | . . . . . . Extermination . | . . . . . . Reinforcement 4 | . 3 1 . . . Assault . | . . . . . . Garrison . | . . . . . . Intercept . | . . . . . . Searches Triggered . | . . . . . . Construction Impeded . | . . . . . . Haulers Reinforced . | . . . . . . Active Scanning Responses . | . . . . . . Cargo Convoy Interrupts . | . . . . . . Stealth | -11 -10 -9 -9 -7 -7 --------- Run | Yrd Mat Mat Min Zio Dee Distress Signals 6 | . 1 4 1 . . Communications Jammed . | . . . . . . Distress Signals . | . . . . . . Times Spotted 51 | . 19 6 20 . 6 Peak Tracking Total 7 | . 5 4 3 . 7 Tactical Retreats 2 | . 1 . 1 . . Traps | -11 -10 -9 -9 -7 -7 ------- Run | Yrd Mat Mat Min Zio Dee Traps Triggered 1 | . 1 . . . . Indirectly . | . . . . . . Trap Hack Attempts . | . . . . . . Triggered . | . . . . . . Disarmed . | . . . . . . Reprogrammed . | . . . . . . Reused . | . . . . . . Traps Extracted . | . . . . . . Installed . | . . . . . . Triggered . | . . . . . . Machines | -11 -10 -9 -9 -7 -7 ---------- Run | Yrd Mat Mat Min Zio Dee Machines Disabled . | . . . . . . Max in Single Turn . | . . . . . . Machines Repaired . | . . . . . . Machines Dismantled . | . . . . . . Machines Sabotaged . | . . . . . . Overloaded Fab Kills . | . . . . . . Hacking | -11 -10 -9 -9 -7 -7 --------- Run | Yrd Mat Mat Min Zio Dee Machines Accessed 5 | . 3 1 1 . . Terminals 4 | . 3 1 . . . Fabricators . | . . . . . . Repair Stations . | . . . . . . Recycling Units . | . . . . . . Scanalyzers . | . . . . . . Garrison Access . | . . . . . . Total Hacks 11 | . 8 2 1 . . Successful 9 | . 8 . 1 . . Failed 2 | . . 2 . . . Catastrophic . | . . . . . . Database Lockouts . | . . . . . . Manual 15 | . 8 2 . 5 . Terminals 10 | . 8 2 . . . Fabricators . | . . . . . . Repair Stations . | . . . . . . Recycling Units . | . . . . . . Scanalyzers . | . . . . . . Garrison Access . | . . . . . . Terminal Hacks 1 | . . . 1 . . Open Door 1 | . . . 1 . . Fabricator Hacks . | . . . . . . Repair Station Hacks . | . . . . . . Recycling Unit Hacks . | . . . . . . Scanalyzer . | . . . . . . Garrison Access Hacks . | . . . . . . Unauthorized Hacks 8 | . 8 . . . . Terminals 8 | . 8 . . . . Track 1 | . 1 . . . . Assimilate 1 | . 1 . . . . Botnet 3 | . 3 . . . . Skim 3 | . 3 . . . . Fabricators . | . . . . . . Repair Stations . | . . . . . . Recycling Units . | . . . . . . Scanalyzers . | . . . . . . Garrison Access . | . . . . . . Data Cores Recovered . | . . . . . . Used . | . . . . . . Hacking Detections 4 | . 3 1 . . . Full Trace Events . | . . . . . . Feedback Events . | . . . . . . Feedback Blocked . | . . . . . . Robot Schematics Acquired 3 | . . . . 3 . Robots Built . | . . . . . . Authchips . | . . . . . . Time . | . . . . . . Total Robot Build Rating . | . . . . . . Part Schematics Acquired 14 | . . . . 14 . Parts Built . | . . . . . . Authchips . | . . . . . . Time . | . . . . . . Total Part Build Rating . | . . . . . . Part Studies Acquired . | . . . . . . Parts Repaired . | . . . . . . Time . | . . . . . . Parts Recycled . | . . . . . . Recycled Matter . | . . . . . . Retrieved Matter . | . . . . . . Retrieved Components . | . . . . . . Parts Scanalyzed . | . . . . . . Part Schematics Acquired . | . . . . . . Parts Damaged . | . . . . . . Bothacking | -11 -10 -9 -9 -7 -7 ------------ Run | Yrd Mat Mat Min Zio Dee Used RIF Installer . | . . . . . . Robots Hacked . | . . . . . . Non-combat . | . . . . . . Combat . | . . . . . . Robot Hacks Applied . | . . . . . . Relay Couplers Released . | . . . . . . Fabnet Peak Effective % . | . . . . . . Robots Rewired . | . . . . . . Allies Hacked . | . . . . . . Hacks Repelled . | . . . . . . Allies | -11 -10 -9 -9 -7 -7 -------- Run | Yrd Mat Mat Min Zio Dee Total Allies 6 | . . . . 6 . Largest Group 6 | . . . . 6 2 Highest-Rated Group 210 | . . . . 210 59 Highest-Rated Ally 40 | . . . . 40 31 Total Orders . | . . . . . . Ally Attacks 3 | . . . . . 3 Total Damage 63 | . . . . . 63 Kills . | . . . . . . Allies Corrupted . | . . . . . . Allies Melted . | . . . . . . Intel | -11 -10 -9 -9 -7 -7 ------- Run | Yrd Mat Mat Min Zio Dee Active Infowar (turns) 299 | . . 213 86 . . Seismic 299 | . . 213 86 . . Robot Analysis Total . | . . . . . . Derelict Logs Recovered 1 | . . . . 1 . Drone Launches . | . . . . . . Drone Recoveries . | . . . . . . Exploration | -11 -10 -9 -9 -7 -7 ------------- Run | Yrd Mat Mat Min Zio Dee Turns Passed 2155 | . 448 220 327 1030 130 Spaces Moved 1507 | 1 260 141 133 858 114 Core . | . . . . . . Treads . | . . . . . . Legs 31 | 1 24 . 6 . . Wheels 1476 | . 236 141 127 858 114 Hover . | . . . . . . Flight . | . . . . . . Fastest Speed 95 | 120 115 115 95 95 95 Average Speed 113 | 120 118 115 137 108 109 Slowest Speed 470 | 120 145 115 470 110 110 Overloaded Moves . | . . . . . . Propulsion Burnouts . | . . . . . . Robots Hopped . | . . . . . . Potential Cave-ins . | . . . . . . Cave-ins Triggered . | . . . . . . Exploration Rate (%) 37 | 2 58 27 26 81 31 Regions Visited 5 Branch Regions 3 Pre-discovered Areas . | . . . . . . Known Exits Taken . | . . . . . . Unknown Exits Taken 5 | 1 1 1 1 1 . Scrap Searched 4 | . . . . 4 . Spaces Dug . | . . . . . . Terrain Destroyed 20 | . 5 . 15 . . Melee . | . . . . . . Projectile 15 | . . . 15 . . AOE 5 | . 5 . . . . Terrain Rammed . | . . . . . . Walls Destroyed . | . . . . . . Machines Disabled . | . . . . . . Actions | -11 -10 -9 -9 -7 -7 --------- Run | Yrd Mat Mat Min Zio Dee Total 1796 | . 338 188 198 954 118 Wait 127 | . 23 14 4 82 4 Move 1502 | . 259 140 132 857 114 Hop . | . . . . . . Pick Up 28 | . 10 13 2 3 . Fast Attach 14 | . 4 . 4 6 . Attach 7 | . 1 2 3 1 . Detach 2 | . . . . 2 . Swap 10 | . 5 3 2 . . Drop 14 | . . 9 2 3 . Fire 92 | . 36 7 49 . . Melee . | . . . . . . Ram . | . . . . . . Kick . | . . . . . . Crush . | . . . . . . Escape Stasis . | . . . . . . Rewire . | . . . . . . Trap . | . . . . . . Miscellaneous . | . . . . . . Route ------- -11/Scrapyard -10/Materials -9/Materials -9/Mines -7/Zion (discovered 2 exits: [*Dee] / [*Pro]) -7/Deep Caves History --------- Turn | Location | Event 1 | -11/Scrapyard | Discovered new exit (range 0) 1 | -11/Scrapyard | Entered Materials 190 | -10/Materials | Core integrity fell below 50% 221 | -10/Materials | Lost 4 parts (1p3w) 314 | -10/Materials | Build established: Mutant 342 | -10/Materials | Core integrity fell below 20% 344 | -10/Materials | Discovered new exit (range 5) 449 | -10/Materials | Entered another Materials area 449 | -9/Materials | Evolved 2 slots: Propulsion x1, Utility x1 659 | -9/Materials | Discovered new exit (range 10) 669 | -9/Materials | Entered Mines 670 | -9/Mines | Assembled infested the area 679 | -9/Mines | Found the Drone Emporium 684 | -9/Mines | Found Prototype Device 687 | -9/Mines | Identified Thief Drone Bay 751 | -9/Mines | A weapon hastily lodged in a ceiling crevice suddenly fell to the ground 797 | -9/Mines | Lost 5 parts (1p2n1u1w) 874 | -9/Mines | Lost 4 parts (1n1u2w) 926 | -9/Mines | Core integrity fell below 50% 989 | -9/Mines | A Derelict revealed a hidden shortcut to a safe place 996 | -9/Mines | Entered Zion 1013 | -7/Zion | Found Prototype Device 1013 | -7/Zion | Identified Mobile Refinery Mk. CCLXVII 1126 | -7/Zion | Discovered new exit (range 16) 1182 | -7/Zion | System corruption cleaned by Quarantine Array 1518 | -7/Zion | Acquired unknown access codes intercepted by a Zionite 1528 | -7/Zion | Build established: Derelict-Mutant 1580 | -7/Zion | Learned Factory stockpile data 1602 | -7/Zion | Gained Derelict followers 1830 | -7/Zion | Met Imprinter 1850 | -7/Zion | Imprinted 1852 | -7/Zion | Declared Zion's savior 1982 | -7/Zion | Opened final containment barrier to the Deep Caves 2000 | -7/Zion | Discovered new exit (range 3) 2000 | -7/Zion | Saw the warning signs outside the Deep Caves entrance 2026 | -7/Zion | Entered Deep Caves 2026 | -7/Deep Caves | Accompanied by 6 allies 2133 | -7/Deep Caves | Z-Facility disabled 2151 | -7/Deep Caves | Attacked by Z-Imprinter 2153 | -7/Deep Caves | Core integrity fell below 20% 2156 | -7/Deep Caves | Destroyed by Z-Imprinter with Zionite Laser-M Last Messages --------------- 02015_ PUBLIC SERVICE ANNOUNCEMENT: Quarantine Array scanned 1 system, cleaned 1. LOCATION=UNKNOWN GOAL=ESCAPE 02028_ S6-6GF(M): "Okay, we didn't really expect you'd be crazy enough to head out this way. We'll go back and get... reinforcements... yeah." 02028_ S6-6GF(M) slips into the shadows. 02029_ HT-QGP(M) slips into the shadows. 02029_ NV-L9I(M) slips into the shadows. 02030_ J4-XUX(M) slips into the shadows. 02116_ NEW_ZION: Z-Facility proximity alert. 02126_ HP-1SX(g) destroyed. 02151_ Med. Reactive Plating destroyed. Z-Imprinter: GET AWAY FROM HERE! I've worked too hard for our future just to have you ruin everything! 02152_ Wheel destroyed. 02155_ Mak. Axe destroyed. 02156_ Wheel destroyed. Map ----- +----------------------------------------------------+ | | | | | | | ?????????????????????????????????##??????????????? | | ????????????????????????????????? !?????########## | | ????????????????????????????????# !??#### | | ????????????????????????????????# [?## | | ????????????????????????######??# ### | | ????????????????????##### # ### ## | | ??????????????????? # ## | | ?????????????????? z | | ????????????????? | | ???????????????? | | ???????????????## | | ???????????????# I """" """"" | | ???????????????# """""""""""" | | ????????????? # """"""""""""" | | ????????????? """"""""""""" | | ??????????????# """"""""""" | | ???????????????# """""""""""" | | ??????????????## """"""""""""" | | ??????????????# """""????"""" | | ???????????????# """"???????"" | | ???????????????# """"??????? " | | ???????????????# """???????? | | ???????????# @ """??????? | | ???????????# """??????? | | ???????????# ""???????? | | ???????????## ""?????????? | | ????????????### ""?????????? | | ??????????????# ""?????????? | | ??????????????## ""?????????? | | ???????????????# "??????????? | | ???????????????## "??????????? | | ????????????????# ??????????? | | ????????????????# ???????????? | | ????????????????# ????????????? | | ???????????????? ??????????????? | | ?????????????????? ????????????????? | | ????????????????????? ???????????????????? | | ??????????????????????? ?????????????????????? | | ?????????????????????????????????????????????????? | | ?????????????????????????????????????????????????? | | ?????????????????????????????????????????????????? | | ?????????????????????????????????????????????????? | | ?????????????????????????????????????????????????? | | ?????????????????????????????????????????????????? | | ?????????????????????????????????????????????????? | | ?????????????????????????????????????????????????? | | ?????????????????????????????????????????????????? | +----------------------------------------------------+ Best States ------------- Heat Dissipation 42 Energy Generation 15 Energy Capacity 250 Matter Stores 300 Matter Capacity 300 Sight Range 16 Terrain Scan Density 10 Armor Coverage 325 Resistance: KI 30 Evasion (%) 55 Item Schematics ----------------- Imp. Titanium Leg | -7/Zion | Archive Fission Core | -7/Zion | Archive Imp. Cooling System | -7/Zion | Archive Drone Bay | -7/Zion | Archive Med. Treads | -7/Zion | Archive Fusion Compressor | -7/Zion | Archive Imp. Carbon-fiber Leg | -7/Zion | Archive Antigrav System | -7/Zion | Archive Lance | -7/Zion | Archive Xenon Bombardment Thruster | -7/Zion | Archive Imp. Core Shielding | -7/Zion | Archive Imp. Deuterium Engine | -7/Zion | Archive Plasma Cannon | -7/Zion | Archive Hvy. Machine Gun | -7/Zion | Archive Robot Schematics ------------------ Y-54 Guardian | -7/Zion | Archive R-06 Scavenger | -7/Zion | Archive B-48 Gladiator | -7/Zion | Archive Fabricated ------------ Nothing Repaired ---------- Nothing Studied --------- None Alien Tech Used ----------------- None Achievements -------------- None Challenges ------------ None Game ------ Seed GhostPropulsionSegregator Manual? 0 Play Time 00:24:50 Cumulative 159.2 hours Start 2025.11.05 @ 23:37:46 End 2025.11.06 @ 00:05:52 Sessions 1 Manual Loads 0 Difficulty Rogue Special Mode None Game No. 168 Rogue 166 Adventurer 2 Explorer 0 Win Type - Total 0 Types 0/0/0/0/0/0/0/0/0/0 Lore% 65 Gallery% 57 Achievement% 32 Wizard Run 0 Options --------- Layout 2 ASCII 0 Keyboard 1 Movement Vi Keybinds 0 Fullscreen 0 Font 42/SmallcapsGlow Map View 29x24 Zoom Use 100% Tactical HUD 1 Map Filters NONE Filters NONE Steam 1 RUN: bf487c98-caa0-4762-ba9d-93f0e0cdcb5e